fUSD/lending_fUSD_20260606
["ID","MTS","AMOUNT","RATE_DAILY","PERIOD"]
[424310724,1780761059000,-150.0,0.00030137,14]
[424310725,1780761059000,-150.0,0.00030137,14]
[424310726,1780761059000,-150.0,0.00030137,14]
[424310727,1780761059000,-150.0,0.00030137,14]
[424310729,1780761059000,-150.0,0.00030137,14]
[424310728,1780761059000,-150.0,0.00030137,14]
[424310736,1780761059000,-150.0,0.00030137,14]
[424310762,1780761059000,-150.0,0.00030137,14]
[424310804,1780761059000,-741.0,0.00030341,5]
[424310765,1780761059000,-150.0,0.00030137,14]
[424310792,1780761059000,-401.14,0.00030236,30]
[424310791,1780761059000,-401.14,0.00030236,30]
[424310797,1780761059000,-150.0,0.00030273,7]
[424310798,1780761059000,-150.0,0.00030286,7]
[424310793,1780761059000,-4427.4,0.00030239,2]
[424310789,1780761059000,-150.0,0.00030228,7]
[424310800,1780761059000,-1329.75,0.000303,14]
[424310802,1780761059000,-150.0,0.00030322,7]
[424310811,1780761059000,-2972.0,0.00030361,30]
[424310812,1780761059000,-4110.0,0.00030361,30]
[424310801,1780761059000,-150.0,0.0003032,7]
[424310807,1780761059000,-3414.96283955,0.00030355,2]
[424310806,1780761059000,-150.0,0.00030353,7]
[424310809,1780761059000,-1092.0,0.00030361,30]
[424310808,1780761059000,-936.0,0.00030361,30]
[424310805,1780761059000,-2423.78,0.0003035,2]
[424310810,1780761059000,-675.0,0.00030361,30]
[424310813,1780761059000,-179.97120458,0.00030362,2]
[424310819,1780761059000,-150.0,0.00030367,7]
[424310814,1780761059000,-948.0,0.00030365,30]
[424310815,1780761059000,-585.0,0.00030365,30]
[424310818,1780761059000,-3381.24,0.00030365,7]
[424310817,1780761059000,-679.0,0.00030365,30]
[424310764,1780761059000,-150.0,0.00030137,14]
[424310816,1780761059000,-4082.0,0.00030365,30]
[424310799,1780761059000,-150.0,0.0003029,7]
[424310794,1780761059000,-150.0,0.00030259,7]
[424310803,1780761059000,-150.0,0.00030337,7]
[424310796,1780761059000,-200.0,0.00030268,2]
[424310757,1780761059000,-150.0,0.00030137,14]
[424310766,1780761059000,-150.0,0.00030137,14]
[424310790,1780761059000,-401.15,0.00030236,30]
[424310768,1780761059000,-150.0,0.00030137,14]
[424310778,1780761059000,-150.0,0.00030166,7]
[424310767,1780761059000,-150.0,0.00030137,14]
[424310772,1780761059000,-150.0,0.00030137,14]
[424310773,1780761059000,-150.0,0.00030137,14]
[424310771,1780761059000,-150.0,0.00030137,14]
[424310769,1780761059000,-150.0,0.00030137,14]
[424310770,1780761059000,-150.0,0.00030137,14]
[424310777,1780761059000,-14841.77,0.00030137,7]
[424310776,1780761059000,-258.73364705,0.00030137,14]
[424310775,1780761059000,-150.0,0.00030137,14]
[424310780,1780761059000,-150.0,0.00030181,7]
[424310787,1780761059000,-303.0,0.00030211,7]
[424310786,1780761059000,-150.0,0.00030204,7]
[424310774,1780761059000,-150.0,0.00030137,14]
[424310783,1780761059000,-600.51,0.000302,2]
[424310784,1780761059000,-600.52,0.000302,2]
[424310785,1780761059000,-3235.570489,0.000302,2]
[424310795,1780761059000,-150.0,0.00030263,7]
[424310788,1780761059000,-150.0,0.00030226,7]
[424310782,1780761059000,-403.3,0.000302,2]
[424310779,1780761059000,-150.0,0.00030179,7]
[424310781,1780761059000,-150.0,0.00030197,7]
[424310855,1780761060000,-840.52415794,0.00030478,2]
[424310856,1780761060000,-611.05502032,0.00030478,2]
[424310857,1780761060000,-150.0,0.00030478,7]
[424310854,1780761060000,-480.95220169,0.00030478,2]
[424310853,1780761060000,-160.55911995,0.00030478,2]
[424310852,1780761060000,-715.13537653,0.00030478,2]
[424310858,1780761060000,-500.0,0.00030489,120]
[424310860,1780761060000,-689.93,0.00030489,120]
[424310861,1780761060000,-689.93,0.00030489,120]
[424310850,1780761060000,-671.93784711,0.00030478,2]
[424310859,1780761060000,-563.26445173,0.00030489,120]
[424310863,1780761060000,-689.93,0.00030489,120]
[424310883,1780761060000,-631.43755386,0.00030503,2]
[424310870,1780761060000,-1016.99,0.00030489,7]
[424310871,1780761060000,-1016.99,0.00030489,7]
[424310866,1780761060000,-513.66,0.00030489,120]
[424310867,1780761060000,-513.66,0.00030489,120]
[424310864,1780761060000,-690.14,0.00030489,120]
[424310865,1780761060000,-513.66,0.00030489,120]
[424310868,1780761060000,-513.66,0.00030489,120]
[424310869,1780761060000,-513.81,0.00030489,120]
[424310873,1780761060000,-1016.99,0.00030489,7]
[424310882,1780761060000,-464.2251992,0.00030503,2]
[424310881,1780761060000,-525.92510406,0.00030503,2]
[424310872,1780761060000,-1016.99,0.00030489,7]
[424310851,1780761060000,-734.69672943,0.00030478,2]
[424310862,1780761060000,-689.93,0.00030489,120]
[424310849,1780761060000,-615.41586543,0.00030478,2]
[424310823,1780761060000,-182.9,0.00030411,120]
[424310846,1780761060000,-736.38229665,0.00030478,2]
[424310874,1780761060000,-1017.15,0.00030489,7]
[424310820,1780761060000,-200.0,0.00030369,2]
[424310824,1780761060000,-150.0,0.00030414,7]
[424310822,1780761060000,-150.0,0.00030392,7]
[424310821,1780761060000,-150.0,0.00030384,7]
[424310826,1780761060000,-150.0,0.00030447,7]
[424310834,1780761060000,-655.43761127,0.00030478,2]
[424310825,1780761060000,-150.0,0.00030415,7]
[424310830,1780761060000,-873.0,0.00030452,30]
[424310827,1780761060000,-404.0,0.00030452,30]
[424310835,1780761060000,-581.31230268,0.00030478,2]
[424310828,1780761060000,-2242.0,0.00030452,30]
[424310829,1780761060000,-404.0,0.00030452,30]
[424310836,1780761060000,-443.0997574,0.00030478,2]
[424310833,1780761060000,-150.0,0.0003047,7]
[424310831,1780761060000,-244.0,0.00030452,30]
[424310832,1780761060000,-150.0,0.00030461,7]
[424310839,1780761060000,-634.08518388,0.00030478,2]
[424310842,1780761060000,-460.91508092,0.00030478,2]
[424310841,1780761060000,-458.17378612,0.00030478,2]
[424310837,1780761060000,-602.53091327,0.00030478,2]
[424310840,1780761060000,-268.41921305,0.00030478,2]
[424310843,1780761060000,-349.48705949,0.00030478,2]
[424310844,1780761060000,-754.25160277,0.00030478,2]
[424310845,1780761060000,-668.95795008,0.00030478,2]
[424310838,1780761060000,-430.62821468,0.00030478,2]
[424310847,1780761060000,-195.69284609,0.00030478,2]
[424310848,1780761060000,-622.46254493,0.00030478,2]
[424310880,1780761060000,-836.0170668,0.00030503,2]
[424310912,1780761060000,-150.0,0.00030556,7]
[424310875,1780761060000,-47389.37864451,0.0003049,7]
[424310918,1780761060000,-150.0,0.00030603,7]
[424310920,1780761060000,-169.15934622,0.00030603,7]
[424310913,1780761060000,-150.0,0.00030572,7]
[424310915,1780761060000,-151.5407187,0.00030603,7]
[424310916,1780761060000,-158.73968764,0.00030603,7]
[424310917,1780761060000,-224.38985235,0.00030603,7]
[424310914,1780761060000,-256.07744874,0.00030603,7]
[424310921,1780761060000,-150.44031966,0.00030603,7]
[424310919,1780761060000,-151.41923819,0.00030603,7]
[424310922,1780761060000,-150.0,0.00030603,7]
[424310926,1780761060000,-194870.6886894,0.00030618,2]
[424310923,1780761060000,-3325.7300034,0.00030618,2]
[424310927,1780761060000,-8852.2942797,0.00030618,2]
[424310929,1780761060000,-205524.0287274,0.00030618,2]
[424310925,1780761060000,-12699.6870387,0.00030618,2]
[424310924,1780761060000,-753063.5931076,0.00030618,2]
[424310933,1780761060000,-615.10686128,0.00030684,2]
[424310934,1780761060000,-717.8514086,0.00030684,2]
[424310928,1780761060000,-1628.2612214,0.00030618,2]
[424310930,1780761060000,-2054.15682156,0.00030664,2]
[424310931,1780761060000,-3414.96283955,0.00030677,2]
[424310932,1780761060000,-650.47523821,0.00030684,2]
[424310936,1780761060000,-668.16057958,0.00030685,2]
[424310935,1780761060000,-226.30533563,0.00030684,2]
[424310937,1780761060000,-619.29553566,0.00030685,2]
[424310938,1780761060000,-229.80171355,0.00030685,2]
[424310876,1780761060000,-207259.94279063,0.0003049,7]
[424310911,1780761060000,-150.0,0.0003054,7]
[424310910,1780761060000,-213.42323793,0.0003051,2]
[424310939,1780761060000,-697.35096028,0.00030685,2]
[424310906,1780761060000,-618.4584957,0.0003051,2]
[424310879,1780761060000,-433.8507668,0.00030503,2]
[424310878,1780761060000,-150.0,0.00030497,7]
[424310877,1780761060000,-168829.80065328,0.0003049,7]
[424310884,1780761060000,-600.14091148,0.00030503,2]
[424310896,1780761060000,-497.05261705,0.00030503,2]
[424310895,1780761060000,-163.58053945,0.00030503,2]
[424310886,1780761060000,-823.59017523,0.00030503,2]
[424310903,1780761060000,-150.0,0.00030509,7]
[424310887,1780761060000,-426.82660578,0.00030503,2]
[424310885,1780761060000,-371.20449431,0.00030503,2]
[424310889,1780761060000,-697.89790358,0.00030503,2]
[424310891,1780761060000,-611.90734185,0.00030503,2]
[424310890,1780761060000,-893.81423737,0.00030503,2]
[424310888,1780761060000,-327.26052862,0.00030503,2]
[424310894,1780761060000,-741.65592889,0.00030503,2]
[424310892,1780761060000,-813.4487965,0.00030503,2]
[424310907,1780761060000,-341.26595142,0.0003051,2]
[424310901,1780761060000,-652.7783335,0.00030503,2]
[424310900,1780761060000,-702.35389238,0.00030503,2]
[424310902,1780761060000,-150.0,0.00030509,7]
[424310904,1780761060000,-881.95259198,0.0003051,2]
[424310905,1780761060000,-729.70899347,0.0003051,2]
[424310899,1780761060000,-616.51515963,0.00030503,2]
[424310909,1780761060000,-723.66895537,0.0003051,2]
[424310908,1780761060000,-483.92219833,0.0003051,2]
[424310898,1780761060000,-886.33952455,0.00030503,2]
[424310893,1780761060000,-457.6608137,0.00030503,2]
[424310897,1780761060000,-491.62402446,0.00030503,2]
[424310978,1780761061000,-161.71780045,0.00030685,2]
[424310975,1780761061000,-384.91173698,0.00030685,2]
[424310977,1780761061000,-805.57072819,0.00030685,2]
[424310976,1780761061000,-527.3441939,0.00030685,2]
[424310974,1780761061000,-411.96414744,0.00030685,2]
[424310980,1780761061000,-723.21284892,0.00030685,2]
[424310979,1780761061000,-178.30960949,0.00030685,2]
[424310973,1780761061000,-713.81930901,0.00030685,2]
[424310972,1780761061000,-481.88658962,0.00030685,2]
[424310970,1780761061000,-667.74392451,0.00030685,2]
[424310981,1780761061000,-590.61351801,0.00030685,2]
[424310983,1780761061000,-168.98283828,0.00030685,2]
[424310998,1780761061000,-734.25749035,0.00030685,2]
[424310985,1780761061000,-742.82060264,0.00030685,2]
[424310993,1780761061000,-160.0523769,0.00030685,2]
[424310987,1780761061000,-755.74643964,0.00030685,2]
[424310988,1780761061000,-568.70035154,0.00030685,2]
[424310984,1780761061000,-493.75709593,0.00030685,2]
[424310986,1780761061000,-170.32151872,0.00030685,2]
[424310992,1780761061000,-647.40474959,0.00030685,2]
[424310991,1780761061000,-498.02403117,0.00030685,2]
[424310990,1780761061000,-168.1029797,0.00030685,2]
[424310989,1780761061000,-160.93632549,0.00030685,2]
[424310994,1780761061000,-647.3679293,0.00030685,2]
[424310997,1780761061000,-390.30147377,0.00030685,2]
[424310971,1780761061000,-346.99088569,0.00030685,2]
[424310982,1780761061000,-169.02355587,0.00030685,2]
[424310961,1780761061000,-648.83895374,0.00030685,2]
[424310953,1780761061000,-170.97405169,0.00030685,2]
[424310965,1780761061000,-895.51096672,0.00030685,2]
[424310940,1780761061000,-1585.42506467,0.00030685,2]
[424310942,1780761061000,-571.41027411,0.00030685,2]
[424310941,1780761061000,-421.78082475,0.00030685,2]
[424310944,1780761061000,-165.72187986,0.00030685,2]
[424310943,1780761061000,-310.69195422,0.00030685,2]
[424310945,1780761061000,-403.4723439,0.00030685,2]
[424310946,1780761061000,-160.67006026,0.00030685,2]
[424310948,1780761061000,-1490.26371775,0.00030685,2]
[424310947,1780761061000,-375.15253989,0.00030685,2]
[424310952,1780761061000,-416.15364245,0.00030685,2]
[424310950,1780761061000,-466.75281567,0.00030685,2]
[424310956,1780761061000,-169.04721995,0.00030685,2]
[424310957,1780761061000,-659.43446574,0.00030685,2]
[424310949,1780761061000,-376.41129422,0.00030685,2]
[424310951,1780761061000,-1700.21393673,0.00030685,2]
[424310955,1780761061000,-315.69646608,0.00030685,2]
[424310968,1780761061000,-665.99867059,0.00030685,2]
[424310963,1780761061000,-212.99678188,0.00030685,2]
[424310959,1780761061000,-1353.95030569,0.00030685,2]
[424310964,1780761061000,-168.46234524,0.00030685,2]
[424310962,1780761061000,-164.60051743,0.00030685,2]
[424310960,1780761061000,-537.83831172,0.00030685,2]
[424310967,1780761061000,-330.18913245,0.00030685,2]
[424310958,1780761061000,-165.14091316,0.00030685,2]
[424310969,1780761061000,-450.70730865,0.00030685,2]
[424310966,1780761061000,-603.11674758,0.00030685,2]
[424310954,1780761061000,-626.72391773,0.00030685,2]
[424310995,1780761061000,-620.73495559,0.00030685,2]
[424310996,1780761061000,-572.99162094,0.00030685,2]
[424311003,1780761061000,-632.3660045,0.00030685,2]
[424311030,1780761061000,-819.29701409,0.00031058,2]
[424311034,1780761061000,-778.07818117,0.00031058,2]
[424311041,1780761061000,-789.29694232,0.00031084,2]
[424311032,1780761061000,-942.81450346,0.00031058,2]
[424311036,1780761061000,-839.92230889,0.00031058,2]
[424311033,1780761061000,-836.1974376,0.00031058,2]
[424311037,1780761061000,-918.37091178,0.00031058,2]
[424311039,1780761061000,-3414.96283955,0.00031073,2]
[424311038,1780761061000,-763.81877541,0.00031058,2]
[424311040,1780761061000,-1045.0213335,0.00031084,2]
[424311042,1780761061000,-750.17613935,0.00031084,2]
[424311044,1780761061000,-764.88417732,0.00031084,2]
[424311035,1780761061000,-769.26983178,0.00031058,2]
[424311043,1780761061000,-1029.48771903,0.00031084,2]
[424311048,1780761061000,-773.07311963,0.00031091,2]
[424311049,1780761061000,-901.28584455,0.00031091,2]
[424311047,1780761061000,-815.97291687,0.00031084,2]
[424311050,1780761061000,-159.5287087,0.00031112,4]
[424311052,1780761061000,-3414.96283955,0.00031142,2]
[424311046,1780761061000,-770.64394953,0.00031084,2]
[424311051,1780761061000,-250.0,0.00031124,7]
[424311054,1780761061000,-262.308,0.000312,4]
[424311056,1780761061000,-3414.96283955,0.00031205,2]
[424311055,1780761061000,-1000.0,0.000312,7]
[424311057,1780761061000,-3414.96283955,0.00031264,2]
[424311000,1780761061000,-482.10660211,0.00030685,2]
[424311045,1780761061000,-1016.81099563,0.00031084,2]
[424311031,1780761061000,-753.16364158,0.00031058,2]
[424311053,1780761061000,-200.0,0.00031143,2]
[424311028,1780761061000,-150.0,0.00031011,2]
[424311004,1780761061000,-795.98343463,0.00030685,2]
[424311024,1780761061000,-2888.24,0.00031,7]
[424311002,1780761061000,-160.45104451,0.00030685,2]
[424311005,1780761061000,-615.66620615,0.00030685,2]
[424311001,1780761061000,-712.88008676,0.00030685,2]
[424310999,1780761061000,-414.69461133,0.00030685,2]
[424311007,1780761061000,-179.97120458,0.00030709,2]
[424311006,1780761061000,-615.57490845,0.00030685,2]
[424311009,1780761061000,-1342.0,0.00030736,2]
[424311008,1780761061000,-411.0,0.00030726,2]
[424311012,1780761061000,-3414.96283955,0.0003081,2]
[424311013,1780761061000,-150.0,0.00030875,2]
[424311011,1780761061000,-213.216407,0.000308,3]
[424311016,1780761061000,-186.35577983,0.00030875,2]
[424311010,1780761061000,-1348.0,0.00030736,2]
[424311014,1780761061000,-150.0,0.00030875,2]
[424311027,1780761061000,-215.80795776,0.00031,30]
[424311022,1780761061000,-300.0,0.00030959,14]
[424311023,1780761061000,-3414.96283955,0.00030998,2]
[424311029,1780761061000,-179.97120458,0.00031057,2]
[424311018,1780761061000,-1329.75,0.000309,14]
[424311026,1780761061000,-215.80795776,0.00031,3]
[424311025,1780761061000,-2500.0,0.00031,3]
[424311019,1780761061000,-3414.96283955,0.00030912,2]
[424311021,1780761061000,-150.0,0.00030959,14]
[424311017,1780761061000,-741.0,0.00030875,6]
[424311015,1780761061000,-150.0,0.00030875,2]
[424311020,1780761061000,-1732.82,0.00030958,2]
[424311113,1780761062000,-4082.0,0.00031365,30]
[424311103,1780761062000,-495.39674861,0.00031343,2]
[424311100,1780761062000,-1227.0,0.00031336,2]
[424311098,1780761062000,-1358.0,0.00031336,2]
[424311101,1780761062000,-6073.0,0.00031336,2]
[424311099,1780761062000,-3554.0,0.00031336,2]
[424311095,1780761062000,-1000.0,0.0003132,2]
[424311097,1780761062000,-150.0,0.0003132,2]
[424311094,1780761062000,-1000.0,0.0003132,2]
[424311091,1780761062000,-1000.0,0.0003132,2]
[424311093,1780761062000,-1000.0,0.0003132,2]
[424311092,1780761062000,-1000.0,0.0003132,2]
[424311096,1780761062000,-967.59,0.0003132,2]
[424311115,1780761062000,-200.0,0.00031369,2]
[424311118,1780761062000,-200.0,0.00031369,2]
[424311114,1780761062000,-679.0,0.00031365,30]
[424311105,1780761062000,-964.74,0.00031347,7]
[424311104,1780761062000,-898.02,0.00031347,7]
[424311110,1780761062000,-4110.0,0.00031361,30]
[424311108,1780761062000,-675.0,0.00031361,30]
[424311106,1780761062000,-936.0,0.00031361,30]
[424311111,1780761062000,-948.0,0.00031365,30]
[424311109,1780761062000,-2972.0,0.00031361,30]
[424311119,1780761062000,-200.0,0.00031369,2]
[424311112,1780761062000,-585.0,0.00031365,30]
[424311116,1780761062000,-200.0,0.00031369,2]
[424311121,1780761062000,-2315.0,0.00031371,5]
[424311090,1780761062000,-1000.0,0.0003132,2]
[424311102,1780761062000,-3642.0,0.00031336,2]
[424311086,1780761062000,-2000.0,0.0003132,2]
[424311062,1780761062000,-774.11941958,0.00031269,2]
[424311085,1780761062000,-279.45,0.0003132,2]
[424311065,1780761062000,-1862.82964719,0.00031269,2]
[424311063,1780761062000,-871.68870035,0.00031269,2]
[424311064,1780761062000,-1981.78133084,0.00031269,2]
[424311058,1780761062000,-813.09404777,0.00031268,2]
[424311060,1780761062000,-897.31426075,0.00031268,2]
[424311061,1780761062000,-835.20072448,0.00031269,2]
[424311059,1780761062000,-768.8835766,0.00031268,2]
[424311066,1780761062000,-2125.26742091,0.00031269,2]
[424311067,1780761062000,-824.29308217,0.00031269,2]
[424311073,1780761062000,-834.67990563,0.00031269,2]
[424311074,1780761062000,-1006.96341024,0.00031269,2]
[424311068,1780761062000,-1692.43788212,0.00031269,2]
[424311071,1780761062000,-753.89593447,0.00031269,2]
[424311087,1780761062000,-2000.0,0.0003132,2]
[424311069,1780761062000,-811.04869218,0.00031269,2]
[424311072,1780761062000,-832.49833823,0.00031269,2]
[424311077,1780761062000,-775.91869449,0.00031269,2]
[424311075,1780761062000,-944.68304955,0.00031269,2]
[424311070,1780761062000,-1119.3887084,0.00031269,2]
[424311079,1780761062000,-769.46863557,0.00031269,2]
[424311088,1780761062000,-1887.33,0.0003132,2]
[424311089,1780761062000,-150.0,0.0003132,2]
[424311084,1780761062000,-2000.0,0.0003132,2]
[424311080,1780761062000,-483.83,0.00031279,60]
[424311081,1780761062000,-475.04394222,0.00031305,60]
[424311083,1780761062000,-2000.0,0.0003132,2]
[424311082,1780761062000,-3414.96283955,0.00031319,2]
[424311078,1780761062000,-917.82186294,0.00031269,2]
[424311076,1780761062000,-809.25593699,0.00031269,2]
[424311127,1780761062000,-152.0,0.00031379,7]
[424311107,1780761062000,-1092.0,0.00031361,30]
[424311128,1780761062000,-1329.75,0.000314,14]
[424311167,1780761062000,-400.0,0.000319,11]
[424311157,1780761062000,-3414.96283955,0.00031679,2]
[424311168,1780761062000,-14841.77,0.00031918,14]
[424311156,1780761062000,-150.0,0.00031644,2]
[424311158,1780761062000,-2000.0,0.00031706,7]
[424311165,1780761062000,-3414.96283955,0.00031895,2]
[424311159,1780761062000,-3414.96283955,0.00031718,2]
[424311166,1780761062000,-1329.75,0.000319,14]
[424311162,1780761062000,-3414.96283955,0.00031792,2]
[424311164,1780761062000,-3414.96283955,0.00031862,2]
[424311161,1780761062000,-3414.96283955,0.00031755,2]
[424311160,1780761062000,-179.97120458,0.00031752,2]
[424311163,1780761062000,-3414.96283955,0.00031827,2]
[424311148,1780761062000,-150.0,0.0003161,2]
[424311169,1780761062000,-200.0,0.00031918,2]
[424311171,1780761062000,-983.1564169,0.00031929,2]
[424311173,1780761062000,-1105.41272357,0.00031929,2]
[424311175,1780761062000,-923.12379814,0.00031929,2]
[424311179,1780761062000,-741.0,0.00031943,7]
[424311174,1780761062000,-933.6938174,0.00031929,2]
[424311178,1780761062000,-916.58253049,0.00031929,2]
[424311170,1780761062000,-3414.96283955,0.00031929,2]
[424311177,1780761062000,-1102.04509414,0.00031929,2]
[424311172,1780761062000,-1003.43692512,0.00031929,2]
[424311181,1780761062000,-924.77273944,0.00031955,2]
[424311183,1780761062000,-922.3784087,0.00031962,2]
[424311182,1780761062000,-3414.96283955,0.00031961,2]
[424311122,1780761062000,-5000.0,0.00031375,2]
[424311176,1780761062000,-1007.90677067,0.00031929,2]
[424311147,1780761062000,-150.0,0.0003161,2]
[424311180,1780761062000,-947.15633079,0.00031955,2]
[424311145,1780761062000,-150.0,0.0003161,2]
[424311152,1780761062000,-150.0,0.0003161,2]
[424311123,1780761062000,-5000.0,0.00031375,2]
[424311120,1780761062000,-3414.96283955,0.00031371,2]
[424311117,1780761062000,-200.0,0.00031369,2]
[424311125,1780761062000,-5000.0,0.00031375,2]
[424311124,1780761062000,-5000.0,0.00031375,2]
[424311130,1780761062000,-741.0,0.00031409,6]
[424311138,1780761062000,-418.0,0.00031473,7]
[424311139,1780761062000,-3414.96283955,0.00031513,2]
[424311140,1780761062000,-397.5,0.00031555,30]
[424311132,1780761062000,-404.0,0.00031452,30]
[424311141,1780761062000,-3414.96283955,0.00031557,2]
[424311135,1780761062000,-873.0,0.00031452,30]
[424311134,1780761062000,-404.0,0.00031452,30]
[424311126,1780761062000,-5000.0,0.00031375,2]
[424311131,1780761062000,-3414.96283955,0.0003142,2]
[424311129,1780761062000,-179.97120458,0.00031405,2]
[424311153,1780761062000,-6216.0,0.00031611,5]
[424311149,1780761062000,-150.0,0.0003161,2]
[424311151,1780761062000,-150.0,0.0003161,2]
[424311150,1780761062000,-150.0,0.0003161,2]
[424311155,1780761062000,-3414.96283955,0.0003164,2]
[424311146,1780761062000,-150.0,0.0003161,2]
[424311144,1780761062000,-608.07,0.000316,30]
[424311133,1780761062000,-2242.0,0.00031452,30]
[424311143,1780761062000,-3414.96283955,0.00031599,2]
[424311137,1780761062000,-3414.96283955,0.00031468,2]
[424311154,1780761062000,-10275.0,0.00031611,5]
[424311136,1780761062000,-244.0,0.00031452,30]
[424311142,1780761062000,-539.0,0.00031562,2]
[424311224,1780761063000,-179.97120458,0.000321,2]
[424311211,1780761063000,-183.46946575,0.00032,120]
[424311214,1780761063000,-700.0,0.00032,2]
[424311213,1780761063000,-894.1558848,0.00032,120]
[424311221,1780761063000,-3414.96283955,0.00032055,2]
[424311220,1780761063000,-2217.74644496,0.00032049,7]
[424311231,1780761063000,-928.9433035,0.00032144,2]
[424311222,1780761063000,-1051.11,0.00032067,30]
[424311230,1780761063000,-3414.96283955,0.00032143,2]
[424311229,1780761063000,-1076.7771129,0.00032143,2]
[424311216,1780761063000,-395.49295146,0.00032014,2]
[424311212,1780761063000,-207.70766804,0.00032,120]
[424311241,1780761063000,-904.67512137,0.00032144,2]
[424311228,1780761063000,-922.66029192,0.00032143,2]
[424311223,1780761063000,-3414.96283955,0.00032085,2]
[424311219,1780761063000,-1051.11,0.00032033,30]
[424311225,1780761063000,-1051.11,0.000321,30]
[424311226,1780761063000,-3414.96283955,0.00032114,2]
[424311233,1780761063000,-1046.02644042,0.00032144,2]
[424311242,1780761063000,-998.99800588,0.00032144,2]
[424311232,1780761063000,-975.71285732,0.00032144,2]
[424311234,1780761063000,-2378.13759701,0.00032144,2]
[424311235,1780761063000,-2235.39557662,0.00032144,2]
[424311215,1780761063000,-4252.59,0.00032,7]
[424311236,1780761063000,-2550.32090509,0.00032144,2]
[424311227,1780761063000,-1051.11,0.00032133,30]
[424311210,1780761063000,-1965.38603372,0.00032,120]
[424311195,1780761063000,-335.52368958,0.00032,120]
[424311208,1780761063000,-248.14722908,0.00032,120]
[424311237,1780761063000,-989.15169861,0.00032144,2]
[424311189,1780761063000,-191.87100063,0.00032,120]
[424311191,1780761063000,-329.30012343,0.00032,120]
[424311193,1780761063000,-719.72340663,0.00032,120]
[424311192,1780761063000,-266.03380762,0.00032,120]
[424311190,1780761063000,-386.6651243,0.00032,120]
[424311184,1780761063000,-927.68774356,0.00031962,2]
[424311188,1780761063000,-1584.17501542,0.00032,120]
[424311185,1780761063000,-1081.54301346,0.00031962,2]
[424311186,1780761063000,-3414.96283955,0.00031993,2]
[424311187,1780761063000,-1051.11,0.00032,30]
[424311194,1780761063000,-176.49218825,0.00032,120]
[424311209,1780761063000,-1334.56681779,0.00032,120]
[424311200,1780761063000,-397.53280426,0.00032,120]
[424311199,1780761063000,-318.41420682,0.00032,120]
[424311197,1780761063000,-547.88475529,0.00032,120]
[424311205,1780761063000,-1361.18878517,0.00032,120]
[424311198,1780761063000,-361.2537955,0.00032,120]
[424311204,1780761063000,-596.1039232,0.00032,120]
[424311202,1780761063000,-372.39131337,0.00032,120]
[424311203,1780761063000,-606.04571185,0.00032,120]
[424311201,1780761063000,-1073.4360953,0.00032,120]
[424311207,1780761063000,-1089.61072436,0.00032,120]
[424311217,1780761063000,-922.51573599,0.00032014,2]
[424311206,1780761063000,-554.51108936,0.00032,120]
[424311218,1780761063000,-3414.96283955,0.00032024,2]
[424311196,1780761063000,-308.32396778,0.00032,120]
[424311238,1780761063000,-2030.92545854,0.00032144,2]
[424311246,1780761063000,-3414.96283955,0.00032172,2]
[424311240,1780761063000,-1343.26645008,0.00032144,2]
[424311273,1780761063000,-150.0,0.00032329,14]
[424311277,1780761063000,-150.0,0.00032345,2]
[424311278,1780761063000,-150.0,0.00032345,2]
[424311275,1780761063000,-3414.96283955,0.00032335,2]
[424311276,1780761063000,-150.0,0.00032345,2]
[424311286,1780761063000,-3414.96283955,0.00032361,2]
[424311280,1780761063000,-150.0,0.00032345,2]
[424311281,1780761063000,-150.0,0.00032345,2]
[424311279,1780761063000,-150.0,0.00032345,2]
[424311285,1780761063000,-659.15953549,0.00032354,12]
[424311284,1780761063000,-800.0,0.00032354,12]
[424311282,1780761063000,-150.0,0.00032345,2]